[Event "Slovakian ECo-C Extraliga 2024-25"]
[Site "Slovakia"]
[Date "2025.02.16"]
[Round "6"]
[White "Adamcik, Robert"]
[Black "Benci, Jozef"]
[Result "1/2-1/2"]
[Annotator "NA"]
[ECO "D43"]
[WhiteElo "1932"]
[BlackElo "1947"]
[PlyCount "35"]
[EventDate "2024.09.12"]
[EventType "team-tourn"]
[EventCountry "SVK"]
[SourceTitle "playchess.com"]
[Source "ChessBase"]
[SourceQuality "1"]
[TimeControl "5400+30"]

1. d4 {[%emt 0:00:12]} Nf6 {[%emt 0:00:11]} 2. Nf3 {[%emt 0:00:09]} d5 {[%emt 0:00:11]} 3. c4 {[%emt 0:00:27]} e6 {[%emt 0:00:55]} 4. Nc3 {[%emt 0:01:13]} c6 {[%emt 0:00:32]} 5. cxd5 {[%emt 0:02:46]} exd5 {[%emt 0:00:17]} 6. Qc2 {[%emt 0:00:41]} Be7 {[%emt 0:04:38]} 7. Bg5 {[%emt 0:01:13]} O-O {[%emt 0:00:59]} 8. e3 {[%emt 0:00:07]} Nbd7 {[%emt 0:12:09]} 9. Bd3 {[%emt 0:01:49]} Re8 {[%emt 0:03:10]} 10. O-O {[%emt 0:01:00]} h6 {[%emt 0:11:31]} 11. Bf4 {[%emt 0:00:55]} a6 {[%emt 0:09:29]} 12. a3 {[%emt 0:07:49]} c5 {[%emt 0:03:19]} 13. Ne5 {[%emt 0:04:48]} Nxe5 {[%emt 0:11:17]} 14. Bxe5 {[%emt 0:02:54]} b6 {[%emt 0:06:50]} 15. Rad1 {[%emt 0:09:47]} c4 {[%emt 0:03:16]} 16. Bf5 {[%emt 0:04:54]} Bb7 {[%emt 0:00:06]} 17. Qe2 {[%emt 0:00:46]} b5 {[%emt 0:01:20]} 18. Qf3 {[%emt 0:08:30]} 1/2-1/2

[Event "Slovakian ECo-C Extraliga 2024-25"]
[Site "Slovakia"]
[Date "2025.02.16"]
[Round "6.1"]
[White "Korobov, Anton"]
[Black "Babula, Vlastimil"]
[Result "1-0"]
[Annotator "TA"]
[ECO "B32"]
[WhiteElo "2627"]
[BlackElo "2497"]
[PlyCount "101"]
[EventDate "2024.09.12"]
[EventType "team-tourn"]
[EventCountry "SVK"]
[SourceTitle "playchess.com"]
[Source "ChessBase"]
[SourceQuality "1"]
[TimeControl "5400+30"]

{[%evp 10,101,17,17,21,27,31,23,41,35,41,13,17,18,46,32,38,61,32,41,34,36,64,60,71,66,81,96,110,102,99,102,151,152,147,147,151,151,145,150,150,150,148,147,147,146,154,138,138,138,139,139,207,129,153,129,155,149,410,404,427,419,412,411,394,377,491,472,4854,4350,5420,5135,5073,2570,3379,2437,2208,2152,2152,1847,1670,1229,1746,1516,6687,6557,6325,6043,6216,5563,5173,5057,1556,1441]} 1. e4 {[%emt 0:00:04]} c5 {[%emt 0:00:20]} 2. Nf3 {[%emt 0:00:07][%cal Bg1f3,Bf3d4,Bd4b5][%mdl 32]} Nc6 {[%emt 0:00:34]} 3. d4 {[%emt 0:00:14]} cxd4 {[%emt 0:00:07]} 4. Nxd4 {[%emt 0:00:07]} e5 {[%emt 0:00:17]} 5. Nb5 {[%emt 0:00:32]} d6 {[%emt 0:00:18]} 6. c4 {[%emt 0:00:26]} g6 {[%emt 0:00:35] is currently scoring better than 6...Be7. B32: Sicilian: Löwenthal and Kalashnikov Variations.} 7. Be2 {[%emt 0:01:24]} a6 {[%emt 0:03:37]} 8. N5c3 {[%emt 0:00:43]} Nf6 {[%emt 0:00:51] White has an edge.} 9. O-O {[%emt 0:04:09]} Bg7 {[%emt 0:02:22]} 10. Be3 {[%emt 0:02:06]} O-O {[%emt 0:02:29]} 11. Nd2 {[%emt 0:04:51]} Be6 {[%emt 0:22:50]} 12. Nb3 $5 $146 {[%emt 0:11:33][%mdl 8] New and interesting.} (12. b4 Rc8 13. Nd5 Nd7 14. Rb1 f5 15. f3 Nd4 16. Nb3 Nxe2+ 17. Qxe2 fxe4 18. fxe4 Rxf1+ 19. Qxf1 Bxd5 20. exd5 {0-1 Thibault,P (2049)-Tirard,H (2452) Sables d'Olonne op 3rd 2016 (1)}) 12... Rc8 {[%emt 0:03:37]} 13. Rc1 {[%emt 0:00:57]} Ne7 {[%emt 0:10:03]} 14. Nd2 {[%emt 0:00:25]} Nc6 {[%emt 0:00:23]} 15. Nf3 {[%emt 0:03:29] Prevents Nd4.} h6 {[%emt 0:02:42]} 16. h3 {[%emt 0:01:25]} Ne7 {[%emt 0:04:24]} 17. Qa4 {[%emt 0:06:08]} Nd7 {[%emt 0:16:44]} 18. Qa3 {[%emt 0:05:46] White is much more active.} Bxc4 {[%emt 0:01:30]} 19. Bxc4 {[%emt 0:03:09]} ({Much less strong is} 19. Qxd6 Bxe2 20. Nxe2 Rxc1 21. Rxc1 Nc6 $14) 19... Rxc4 {[%emt 0:00:03]} 20. Qxd6 {[%emt 0:00:07]} Nb8 {[%emt 0:03:02]} (20... Nf6 $142 21. Qxd8 (21. Qxe5 Nxe4 22. Qh2 Nxc3 $17) 21... Rxd8) 21. Qxd8 $16 {[%emt 0:00:57]} Rxd8 {[%emt 0:00:03] [#]} 22. Nd5 $1 {[%emt 0:00:15][%mdl 512]} Rxc1 {[%emt 0:01:31]} 23. Nxe7+ {[%emt 0:00:06]} Kf8 {[%emt 0:00:03] aiming for ...Rxf1+.} 24. Nxg6+ {[%emt 0:00:16]} ({Not} 24. Bxc1 Kxe7 25. b3 Nc6 $15) 24... fxg6 {[%emt 0:00:05]} 25. Rxc1 {[%emt 0:00:06]} Nc6 {[%emt 0:00:13]} 26. Kf1 {[%emt 0:00:20]} Kf7 {[%emt 0:01:09]} 27. Ke2 {[%emt 0:00:39]} Ke6 {[%emt 0:00:07]} 28. Rd1 {[%emt 0:02:27]} Rxd1 {[%emt 0:00:49]} 29. Kxd1 {[%emt 0:00:03][%mdl 4096] Endgame KBN-KBN. White is a pawn up.} b5 {[%emt 0:00:17]} 30. Ne1 {[%emt 0:00:38]} a5 {[%emt 0:00:59]} (30... Nb4 $16 31. a3 Nc6) 31. Nd3 {[%emt 0:01:12]} Bf8 {[%emt 0:00:07]} 32. Kc2 {[%emt 0:01:20]} h5 {[%emt 0:01:08]} 33. b3 {[%emt 0:00:48]} Nb4+ $2 {[%emt 0:01:21][%mdl 8192] Black cannot hold the game after this.} (33... Ba3 $16 34. f3 Kf6) 34. Nxb4 $18 {[%emt 0:00:16]} axb4 {[%emt 0:00:03] KB-KB. White is a pawn up.} 35. f4 {[%emt 0:02:28]} Be7 {[%emt 0:19:59]} 36. fxe5 {[%emt 0:00:56]} (36. Kd3 exf4 37. Bxf4 g5 $18) 36... Kxe5 {[%emt 0:00:32]} 37. Kd3 {[%emt 0:00:06]} g5 {[%emt 0:00:23]} 38. g4 {[%emt 0:01:33] White is clearly winning.} hxg4 {[%emt 0:00:18]} (38... h4 $142 39. Bd2 Ke6) 39. hxg4 {[%emt 0:00:05]} Bd8 {[%emt 0:00:30]} 40. Bc1 {[%emt 0:01:22]} Be7 {[%emt 0:00:26]} 41. Ke3 {[%emt 0:00:44]} Bc5+ {[%emt 0:01:50]} 42. Kf3 {[%emt 0:00:12]} Be7 {[%emt 0:00:05]} 43. Bb2+ {[%emt 0:00:27]} Ke6 {[%emt 0:00:03]} 44. Ke3 {[%emt 0:00:33]} Bc5+ {[%emt 0:00:40]} 45. Kd3 {[%emt 0:00:33]} Be7 {[%emt 0:02:11]} 46. Bg7 {[%emt 0:01:04] [#] e5 is the strong threat.} Bc5 {[%emt 0:00:00]} 47. e5 {[%emt 0:00:00]} Kd5 {[%emt 0:00:00]} 48. Bf6 {[%emt 0:00:00]} Bf8 {[%emt 0:00:00]} 49. Bxg5 {[%emt 0:00:00]} Kxe5 {[%emt 0:00:00]} 50. Bd2 {[%emt 0:00:00]} Bc5 {[%emt 0:00:00]} 51. g5 {[%emt 0:00:00] Weighted Error Value: White=0.39/Black=0.77  Loses game:     	---       	Black=1      Mistake:       	---       	Black=3      Inaccurate:     	White=2     	Black=3      OK:         	White=18    	Black=6      Best:        	White=4     	Black=2      Brilliant:      	White=1     	---} 1-0

[Event "Slovakian ECo-C Extraliga 2024-25"]
[Site "Slovakia"]
[Date "2025.02.16"]
[Round "6.1"]
[White "Ftacnik, Lubomir"]
[Black "Antoniewski, Rafal"]
[Result "1-0"]
[Annotator "ChessBase"]
[ECO "A05"]
[WhiteElo "2438"]
[BlackElo "2444"]
[PlyCount "105"]
[EventDate "2024.09.12"]
[EventType "team-tourn"]
[EventCountry "SVK"]
[SourceTitle "playchess.com"]
[Source "ChessBase"]
[SourceQuality "1"]
[TimeControl "5400+30"]

1. Nf3 {[%emt 0:00:04]} Nf6 {[%emt 0:00:09]} 2. c4 {[%emt 0:00:10]} b6 {[%emt 0:00:31]} 3. g3 {[%emt 0:00:19]} Bb7 {[%emt 0:00:11]} 4. Bg2 {[%emt 0:00:02]} g6 {[%emt 0:00:51]} 5. d4 {[%emt 0:00:23]} Bg7 {[%emt 0:00:06]} 6. O-O {[%emt 0:00:09]} O-O {[%emt 0:00:04]} 7. d5 {[%emt 0:00:32]} Ne4 {[%emt 0:01:23]} 8. Qc2 {[%emt 0:00:50]} f5 {[%emt 0:00:08]} 9. Ng5 {[%emt 0:01:24]} Nd6 {[%emt 0:00:25]} 10. Nc3 {[%emt 0:00:58]} Na6 {[%emt 0:03:12]} 11. e4 {[%emt 0:01:58]} Nxc4 {[%emt 0:06:03]} 12. Qe2 {[%emt 0:01:55]} Nd6 {[%emt 0:05:56]} 13. e5 {[%emt 0:03:40]} Nf7 {[%emt 0:06:48]} 14. Rd1 {[%emt 0:03:41]} Qc8 {[%emt 0:08:05]} 15. Nxf7 {[%emt 0:08:46]} Rxf7 {[%emt 0:01:10]} 16. Bg5 {[%emt 0:02:50]} h6 {[%emt 0:11:17]} 17. e6 {[%emt 0:02:05]} hxg5 {[%emt 0:04:58]} 18. exf7+ {[%emt 0:00:09]} Kxf7 {[%emt 0:00:04]} 19. Rac1 {[%emt 0:02:20]} Bf6 {[%emt 0:06:56]} 20. Nb5 {[%emt 0:05:54]} c5 {[%emt 0:05:53]} 21. dxc6 {[%emt 0:04:50]} dxc6 {[%emt 0:01:35]} 22. Qc4+ {[%emt 0:07:37]} Kg7 {[%emt 0:05:20]} 23. Nd4 {[%emt 0:07:07]} Nc5 {[%emt 0:11:11]} 24. b4 {[%emt 0:01:08]} Ba6 {[%emt 0:01:40]} 25. Qc3 {[%emt 0:01:15]} Ne4 {[%emt 0:00:14]} 26. Qxc6 {[%emt 0:04:46]} Qxc6 {[%emt 0:00:48]} 27. Rxc6 {[%emt 0:00:27]} Kf7 {[%emt 0:00:27]} 28. Rcc1 {[%emt 0:13:05]} Rd8 {[%emt 0:08:39]} 29. Nc6 {[%emt 0:03:09]} Rxd1+ {[%emt 0:00:34]} 30. Rxd1 {[%emt 0:00:03]} Nc3 {[%emt 0:01:28]} 31. Rd7 {[%emt 0:03:31]} Bc4 {[%emt 0:00:30]} 32. a3 {[%emt 0:06:36]} a6 {[%emt 0:00:40]} 33. Rb7 {[%emt 0:03:46]} Nb1 {[%emt 0:01:56]} 34. Rxb6 {[%emt 0:02:25]} Nxa3 {[%emt 0:00:17]} 35. Bf1 {[%emt 0:00:51]} Bb5 {[%emt 0:01:30]} 36. Bxb5 {[%emt 0:03:48]} axb5 {[%emt 0:00:04]} 37. Kf1 {[%emt 0:03:54]} g4 {[%emt 0:03:18]} 38. Ke2 {[%emt 0:00:20]} Ke6 {[%emt 0:00:10]} 39. Na7+ {[%emt 0:00:56]} Kd5 {[%emt 0:00:10]} 40. Nxb5 {[%emt 0:00:06]} Nc2 {[%emt 0:01:19]} 41. Nc7+ {[%emt 0:01:21]} Kc4 {[%emt 0:00:40]} 42. Rc6+ {[%emt 0:00:00]} Kb3 {[%emt 0:00:00]} 43. b5 {[%emt 0:00:00]} Be5 {[%emt 0:00:00]} 44. Rxc2 {[%emt 0:00:00]} Kxc2 {[%emt 0:00:00]} 45. b6 {[%emt 0:00:00]} Kb3 {[%emt 0:00:00]} 46. Na6 {[%emt 0:00:00]} Kc4 {[%emt 0:00:00]} 47. b7 {[%emt 0:00:00]} Kd5 {[%emt 0:00:00]} 48. b8=Q {[%emt 0:00:00]} Bxb8 {[%emt 0:00:00]} 49. Nxb8 {[%emt 0:00:00]} Ke4 {[%emt 0:00:00]} 50. Nd7 {[%emt 0:00:00]} g5 {[%emt 0:00:00]} 51. Nf8 {[%emt 0:00:00]} f4 {[%emt 0:00:00]} 52. Ne6 {[%emt 0:00:00]} Kf5 {[%emt 0:00:00]} 53. Nc5 {[%emt 0:00:00]} 1-0

[Event "Slovakian ECo-C Extraliga 2024-25"]
[Site "Slovakia"]
[Date "2025.02.16"]
[Round "6.1"]
[White "Cernousek, Lukas"]
[Black "Mihok, Oliver"]
[Result "0-1"]
[Annotator "ChessBase"]
[ECO "E68"]
[WhiteElo "2425"]
[BlackElo "2526"]
[PlyCount "108"]
[EventDate "2024.09.12"]
[EventType "team-tourn"]
[EventCountry "SVK"]
[SourceTitle "playchess.com"]
[Source "ChessBase"]
[SourceQuality "1"]
[TimeControl "5400+30"]

1. d4 {[%emt 0:00:12]} Nf6 {[%emt 0:00:08]} 2. c4 {[%emt 0:00:06]} d6 {[%emt 0:00:21]} 3. Nf3 {[%emt 0:01:18]} g6 {[%emt 0:00:13]} 4. g3 {[%emt 0:00:30]} Bg7 {[%emt 0:00:05]} 5. Bg2 {[%emt 0:00:06]} O-O {[%emt 0:00:26]} 6. Nc3 {[%emt 0:00:22]} Nbd7 {[%emt 0:00:09]} 7. O-O {[%emt 0:00:42]} e5 {[%emt 0:00:14]} 8. e4 {[%emt 0:00:25]} exd4 {[%emt 0:00:22]} 9. Nxd4 {[%emt 0:00:07]} Re8 {[%emt 0:00:07]} 10. h3 {[%emt 0:00:51]} Nc5 {[%emt 0:00:55]} 11. Re1 {[%emt 0:02:19]} a6 {[%emt 0:00:09]} 12. Qc2 {[%emt 0:08:50]} Ne6 {[%emt 0:03:27]} 13. Be3 {[%emt 0:02:10]} Ng4 {[%emt 0:03:39]} 14. hxg4 {[%emt 0:09:32]} Nxd4 {[%emt 0:00:12]} 15. Qd1 {[%emt 0:00:05]} c5 {[%emt 0:01:20]} 16. g5 {[%emt 0:01:00]} Be6 {[%emt 0:03:41]} 17. Nd5 {[%emt 0:08:25]} b5 {[%emt 0:08:40]} 18. Nf6+ {[%emt 0:15:56]} Bxf6 {[%emt 0:00:13]} 19. gxf6 {[%emt 0:00:05]} Qxf6 {[%emt 0:00:29]} 20. Bxd4 {[%emt 0:01:46]} Qxd4 {[%emt 0:10:16]} 21. Qxd4 {[%emt 0:01:52]} cxd4 {[%emt 0:00:05]} 22. cxb5 {[%emt 0:05:22]} axb5 {[%emt 0:00:18]} 23. Red1 {[%emt 0:00:07]} Ra4 {[%emt 0:07:35]} 24. b3 {[%emt 0:06:30]} Ra3 {[%emt 0:06:57]} 25. Bf1 {[%emt 0:04:32]} Rb8 {[%emt 0:01:32]} 26. Rxd4 {[%emt 0:14:18]} Bxb3 {[%emt 0:00:09]} 27. Rb1 {[%emt 0:01:53]} Bc2 {[%emt 0:13:09]} 28. Rb2 {[%emt 0:07:06]} Ra4 {[%emt 0:00:26]} 29. Rxd6 {[%emt 0:00:22]} Bxe4 {[%emt 0:01:08]} 30. Bxb5 {[%emt 0:00:22]} Ra3 {[%emt 0:05:33]} 31. Rd4 {[%emt 0:03:57]} Bf3 {[%emt 0:04:47]} 32. Rc4 {[%emt 0:03:56]} Rd3 {[%emt 0:02:09]} 33. g4 {[%emt 0:01:19]} Rd5 {[%emt 0:06:07]} 34. a4 {[%emt 0:00:01]} h5 {[%emt 0:00:09]} 35. Rcb4 {[%emt 0:00:58]} hxg4 {[%emt 0:01:23]} 36. Bf1 {[%emt 0:00:36]} Rxb4 {[%emt 0:00:31]} 37. Rxb4 {[%emt 0:00:30]} Rd1 {[%emt 0:00:30]} 38. Rb2 {[%emt 0:00:30]} Ra1 {[%emt 0:00:30]} 39. a5 {[%emt 0:00:30]} Rxa5 {[%emt 0:00:30]} 40. Bg2 {[%emt 0:00:30]} Ra1+ {[%emt 0:00:30]} 41. Kh2 {[%emt 0:00:30]} Bxg2 {[%emt 0:00:30]} 42. Kxg2 {[%emt 0:00:30]} Kg7 {[%emt 0:00:30]} 43. Rb7 {[%emt 0:00:30]} Ra3 {[%emt 0:00:30]} 44. Rc7 {[%emt 0:00:30]} Rf3 {[%emt 0:00:30]} 45. Ra7 {[%emt 0:00:30]} Kh6 {[%emt 0:00:30]} 46. Ra5 {[%emt 0:00:30]} f5 {[%emt 0:00:30]} 47. Rb5 {[%emt 0:00:30]} Ra3 {[%emt 0:00:30]} 48. Rb4 {[%emt 0:00:30]} Kg5 {[%emt 0:00:30]} 49. Rb5 {[%emt 0:00:30]} Kh6 {[%emt 0:00:30]} 50. Rb4 {[%emt 0:00:30]} g5 {[%emt 0:00:30]} 51. Rb2 {[%emt 0:00:30]} f4 {[%emt 0:00:30]} 52. Rc2 {[%emt 0:00:30]} Kh5 {[%emt 0:00:30]} 53. Rb2 {[%emt 0:00:30]} g3 {[%emt 0:00:30]} 54. f3 {[%emt 0:00:30]} g4 {[%emt 0:00:30]} 0-1

[Event "Slovakian ECo-C Extraliga 2024-25"]
[Site "Slovakia"]
[Date "2025.02.16"]
[Round "6.2"]
[White "Tazbir, Marcin"]
[Black "Manik, Mikulas"]
[Result "1-0"]
[Annotator "ChessBase"]
[ECO "B92"]
[WhiteElo "2502"]
[BlackElo "2262"]
[PlyCount "61"]
[EventDate "2024.09.12"]
[EventType "team-tourn"]
[EventCountry "SVK"]
[SourceTitle "playchess.com"]
[Source "ChessBase"]
[SourceQuality "1"]
[TimeControl "5400+30"]

1. e4 {[%emt 0:00:03]} c5 {[%emt 0:00:02]} 2. Nc3 {[%emt 0:00:07]} a6 {[%emt 0:00:05]} 3. Nf3 {[%emt 0:00:52]} d6 {[%emt 0:00:08]} 4. d4 {[%emt 0:00:05]} cxd4 {[%emt 0:00:06]} 5. Nxd4 {[%emt 0:00:04]} Nf6 {[%emt 0:00:03]} 6. Be2 {[%emt 0:00:34]} e5 {[%emt 0:00:13]} 7. Nb3 {[%emt 0:00:07]} Be6 {[%emt 0:02:01]} 8. f4 {[%emt 0:05:49]} exf4 {[%emt 0:05:24]} 9. Bxf4 {[%emt 0:00:14]} Nc6 {[%emt 0:00:12]} 10. Qd2 {[%emt 0:14:22]} d5 {[%emt 0:02:14]} 11. O-O-O {[%emt 0:07:28]} Bb4 {[%emt 0:02:31]} 12. Qe3 {[%emt 0:02:10]} d4 {[%emt 0:12:38]} 13. Qg3 {[%emt 0:03:09]} O-O {[%emt 0:00:14]} 14. e5 {[%emt 0:01:30]} Nd5 {[%emt 0:04:59]} 15. Bh6 {[%emt 0:06:15]} g6 {[%emt 0:00:19]} 16. Nxd5 {[%emt 0:01:00]} Bxd5 {[%emt 0:02:14]} 17. Nxd4 {[%emt 0:06:40]} Re8 {[%emt 0:03:21]} 18. a3 {[%emt 0:22:05]} Ba5 {[%emt 0:03:34]} 19. Nxc6 {[%emt 0:02:38]} bxc6 {[%emt 0:00:07]} 20. c4 {[%emt 0:00:50]} Rb8 {[%emt 0:00:46]} 21. cxd5 {[%emt 0:10:45]} Qb6 {[%emt 0:06:44]} 22. b3 {[%emt 0:00:09]} cxd5 {[%emt 0:00:06]} 23. Rd3 {[%emt 0:01:28]} Rec8+ {[%emt 0:04:43]} 24. Kb1 {[%emt 0:00:45]} d4 {[%emt 0:00:09]} 25. Rc1 {[%emt 0:01:19]} Bc3 {[%emt 0:01:37]} 26. Rdxc3 {[%emt 0:09:16]} dxc3 {[%emt 0:00:12]} 27. Rxc3 {[%emt 0:00:05]} Qg1+ {[%emt 0:04:13]} 28. Rc1 {[%emt 0:00:11]} Rxc1+ {[%emt 0:00:52]} 29. Bxc1 {[%emt 0:00:02]} Rc8 {[%emt 0:00:17]} 30. Bc4 {[%emt 0:00:35]} Qb6 {[%emt 0:00:14]} 31. Bb2 {[%emt 0:00:11]} 1-0

[Event "Slovakian ECo-C Extraliga 2024-25"]
[Site "Slovakia"]
[Date "2025.02.16"]
[Round "6.2"]
[White "Kaczur, Florian"]
[Black "Plat, Vojtech"]
[Result "1/2-1/2"]
[Annotator "ChessBase"]
[ECO "D94"]
[WhiteElo "2475"]
[BlackElo "2459"]
[PlyCount "67"]
[EventDate "2024.09.12"]
[EventType "team-tourn"]
[EventCountry "SVK"]
[SourceTitle "playchess.com"]
[Source "ChessBase"]
[SourceQuality "1"]
[TimeControl "5400+30"]

1. d4 {[%emt 0:00:04]} Nf6 {[%emt 0:00:22]} 2. c4 {[%emt 0:00:51]} g6 {[%emt 0:00:07]} 3. Nc3 {[%emt 0:00:47]} d5 {[%emt 0:00:06]} 4. Nf3 {[%emt 0:00:59]} Bg7 {[%emt 0:00:04]} 5. e3 {[%emt 0:01:58]} O-O {[%emt 0:00:20]} 6. cxd5 {[%emt 0:03:13]} Nxd5 {[%emt 0:00:08]} 7. Be2 {[%emt 0:00:04]} c5 {[%emt 0:02:08]} 8. Qb3 {[%emt 0:00:49]} Nxc3 {[%emt 0:08:55]} 9. bxc3 {[%emt 0:03:05]} Nc6 {[%emt 0:00:10]} 10. O-O {[%emt 0:03:39]} b6 {[%emt 0:00:47]} 11. Ba3 {[%emt 0:02:54]} Be6 {[%emt 0:03:25]} 12. Qa4 {[%emt 0:13:08]} Bd7 {[%emt 0:02:47]} 13. Qa6 {[%emt 0:09:55]} Bc8 {[%emt 0:02:45]} 14. Qb5 {[%emt 0:06:14]} Bd7 {[%emt 0:00:12]} 15. Qb2 {[%emt 0:01:52]} Rb8 {[%emt 0:08:51]} 16. Rad1 {[%emt 0:06:21]} Qc7 {[%emt 0:03:08]} 17. dxc5 {[%emt 0:02:57]} bxc5 {[%emt 0:00:35]} 18. Qc1 {[%emt 0:00:10]} Be6 {[%emt 0:08:24]} 19. Bxc5 {[%emt 0:05:56]} Qa5 {[%emt 0:02:41]} 20. Qa3 {[%emt 0:00:36]} Qxa3 {[%emt 0:00:51]} 21. Bxa3 {[%emt 0:00:03]} Bxc3 {[%emt 0:03:50]} 22. Rc1 {[%emt 0:12:20]} Bb2 {[%emt 0:01:05]} 23. Rxc6 {[%emt 0:06:22]} Bxa3 {[%emt 0:00:04]} 24. Nd4 {[%emt 0:00:13]} Bd5 {[%emt 0:02:33]} 25. Rc7 {[%emt 0:03:19]} Bd6 {[%emt 0:02:13]} 26. Rxa7 {[%emt 0:01:38]} Ra8 {[%emt 0:00:19]} 27. Rxa8 {[%emt 0:05:13]} Rxa8 {[%emt 0:00:01]} 28. Bf3 {[%emt 0:00:18]} Bxf3 {[%emt 0:00:04]} 29. Nxf3 {[%emt 0:00:05]} Rxa2 {[%emt 0:00:03]} 30. g4 {[%emt 0:00:30]} Kg7 {[%emt 0:00:37]} 31. Kg2 {[%emt 0:00:19]} Bc5 {[%emt 0:00:30]} 32. Kg3 {[%emt 0:00:39]} Bd6+ {[%emt 0:00:05]} 33. Kg2 {[%emt 0:00:04]} Bc5 {[%emt 0:00:02]} 34. Kg3 {[%emt 0:00:05]} 1/2-1/2

[Event "Slovakian ECo-C Extraliga 2024-25"]
[Site "Slovakia"]
[Date "2025.02.16"]
[Round "6.2"]
[White "Mrva, Martin"]
[Black "Laurusas, Tomas"]
[Result "1/2-1/2"]
[Annotator "ChessBase"]
[ECO "B41"]
[WhiteElo "2398"]
[BlackElo "2578"]
[PlyCount "102"]
[EventDate "2024.09.12"]
[EventType "team-tourn"]
[EventCountry "SVK"]
[SourceTitle "playchess.com"]
[Source "ChessBase"]
[SourceQuality "1"]
[TimeControl "5400+30"]

1. e4 {[%emt 0:00:04]} c5 {[%emt 0:00:10]} 2. Nf3 {[%emt 0:00:08]} e6 {[%emt 0:00:51]} 3. d4 {[%emt 0:00:08]} cxd4 {[%emt 0:00:07]} 4. Nxd4 {[%emt 0:00:05]} a6 {[%emt 0:00:58]} 5. c4 {[%emt 0:00:30]} Nf6 {[%emt 0:00:07]} 6. Nc3 {[%emt 0:00:13]} Qc7 {[%emt 0:00:07]} 7. a3 {[%emt 0:00:20]} b6 {[%emt 0:02:58]} 8. f4 {[%emt 0:00:31]} Bb7 {[%emt 0:04:00]} 9. Bd3 {[%emt 0:00:15]} Nc6 {[%emt 0:01:54]} 10. Nxc6 {[%emt 0:00:29]} Bxc6 {[%emt 0:04:02]} 11. e5 {[%emt 0:01:56]} Ng8 {[%emt 0:00:11]} 12. Qe2 {[%emt 0:00:19]} d6 {[%emt 0:19:56]} 13. Nd5 {[%emt 0:07:34]} Qd8 {[%emt 0:13:12]} 14. Nb4 {[%emt 0:01:02]} Bb7 {[%emt 0:00:09]} 15. Bc2 {[%emt 0:00:15]} Qd7 {[%emt 0:01:53]} 16. Be3 {[%emt 0:24:47]} a5 {[%emt 0:04:01]} 17. Nd3 {[%emt 0:02:13]} Qc7 {[%emt 0:01:02]} 18. f5 {[%emt 0:08:09]} dxe5 {[%emt 0:12:13]} 19. Ba4+ {[%emt 0:05:50]} Bc6 {[%emt 0:00:10]} 20. Bxc6+ {[%emt 0:02:50]} Qxc6 {[%emt 0:00:01]} 21. Nxe5 {[%emt 0:00:26]} Qe4 {[%emt 0:00:02]} 22. Bxb6 {[%emt 0:00:20]} exf5 {[%emt 0:00:03]} 23. Qxe4 {[%emt 0:13:27]} fxe4 {[%emt 0:00:12]} 24. O-O-O {[%emt 0:00:13]} a4 {[%emt 0:11:00]} 25. Rhf1 {[%emt 0:11:54]} Nf6 {[%emt 0:06:18]} 26. g4 {[%emt 0:02:07]} h6 {[%emt 0:00:08]} 27. h4 {[%emt 0:00:10]} Rc8 {[%emt 0:00:48]} 28. g5 {[%emt 0:02:08]} hxg5 {[%emt 0:00:13]} 29. hxg5 {[%emt 0:00:05]} Rh5 {[%emt 0:00:04]} 30. Be3 {[%emt 0:03:21]} Rh3 {[%emt 0:04:36]} 31. Bd4 {[%emt 0:07:16]} Nh7 {[%emt 0:02:38]} 32. Nxf7 {[%emt 0:03:10]} Rxc4+ {[%emt 0:02:23]} 33. Kb1 {[%emt 0:00:05]} Rd3 {[%emt 0:07:43]} 34. g6 {[%emt 0:04:11]} Nf6 {[%emt 0:00:01]} 35. Bc3 {[%emt 0:00:28]} Rxd1+ {[%emt 0:02:56]} 36. Rxd1 {[%emt 0:00:02]} e3 {[%emt 0:00:22]} 37. Kc2 {[%emt 0:01:17]} Bc5 {[%emt 0:00:56]} 38. Kd3 {[%emt 0:00:32]} Rg4 {[%emt 0:00:14]} 39. Ne5 {[%emt 0:00:10]} Rg2 {[%emt 0:00:42]} 40. Kc4 {[%emt 0:00:06]} Ne4 {[%emt 0:00:35]} 41. Ba5 {[%emt 0:00:00]} Bd6 {[%emt 0:00:00]} 42. Rd4 {[%emt 0:00:00]} Nd2+ {[%emt 0:00:00]} 43. Bxd2 {[%emt 0:00:00]} Bxe5 {[%emt 0:00:00]} 44. Re4 {[%emt 0:00:00]} exd2 {[%emt 0:00:00]} 45. Rxe5+ {[%emt 0:00:00]} Kd7 {[%emt 0:00:00]} 46. Rd5+ {[%emt 0:00:00]} Ke6 {[%emt 0:00:00]} 47. Rd8 {[%emt 0:00:00]} Kf5 {[%emt 0:00:00]} 48. Kb4 {[%emt 0:00:00]} Rg4+ {[%emt 0:02:28]} 49. Kb5 {[%emt 0:00:00]} Kxg6 {[%emt 0:00:11]} 50. Rxd2 {[%emt 0:00:00]} Kf5 {[%emt 0:00:07]} 51. b4 {[%emt 0:00:00]} Ke5 1/2-1/2

[Event "Slovakian ECo-C Extraliga 2024-25"]
[Site "Slovakia"]
[Date "2025.02.16"]
[Round "6.3"]
[White "Kusa, Jakub"]
[Black "Sipos, Istvan"]
[Result "1/2-1/2"]
[Annotator "ChessBase"]
[ECO "D26"]
[WhiteElo "2412"]
[BlackElo "2455"]
[PlyCount "37"]
[EventDate "2024.09.12"]
[EventType "team-tourn"]
[EventCountry "SVK"]
[SourceTitle "playchess.com"]
[Source "ChessBase"]
[SourceQuality "1"]
[TimeControl "5400+30"]

1. d4 {[%emt 0:00:04]} d5 {[%emt 0:00:51]} 2. c4 {[%emt 0:00:26]} dxc4 {[%emt 0:01:35]} 3. Nf3 {[%emt 0:00:09]} Nf6 {[%emt 0:00:13]} 4. e3 {[%emt 0:00:20]} e6 {[%emt 0:00:15]} 5. Bxc4 {[%emt 0:00:09]} a6 {[%emt 0:00:32]} 6. O-O {[%emt 0:00:39]} c5 {[%emt 0:00:12]} 7. b3 {[%emt 0:01:13]} cxd4 {[%emt 0:08:39]} 8. Nxd4 {[%emt 0:02:13]} Be7 {[%emt 0:01:18]} 9. Bb2 {[%emt 0:00:34]} O-O {[%emt 0:00:21]} 10. Nd2 {[%emt 0:00:44]} Bd7 {[%emt 0:09:05]} 11. N2f3 {[%emt 0:01:48]} Nc6 {[%emt 0:00:02]} 12. Nxc6 {[%emt 0:03:06]} Bxc6 {[%emt 0:00:21]} 13. Ne5 {[%emt 0:00:22]} Bd5 {[%emt 0:01:12]} 14. Qe2 {[%emt 0:03:34]} Bxc4 {[%emt 0:30:43]} 15. Nxc4 {[%emt 0:00:10]} Qc7 {[%emt 0:00:16]} 16. Rfd1 {[%emt 0:02:48]} Rfd8 {[%emt 0:03:03]} 17. Rac1 {[%emt 0:08:18]} Rxd1+ {[%emt 0:00:37]} 18. Rxd1 {[%emt 0:00:43]} Rd8 {[%emt 0:08:54]} 19. Rxd8+ {[%emt 0:06:14]} 1/2-1/2